Cogmind - Beta 14 @@@ ROGUE MODE // 2025.03.08 @ 18:32:18 Player: Cog on my mind Result: Escaped! Performance ------------- Evolutions (9) 4500 Regions Visited (26) 5200 Robots Destroyed (466) 2330 Value Destroyed (16378) 16378 Prototype IDs (80) 1600 Alien Tech Used (1) 200 Bonus (11467) 11467 TOTAL SCORE: 41675 Bonus ------- High Alert Combat Kills 2769 Follower Combat Kills 2062 Network Hubs Disabled 200 Aligned with FarCom 300 Met Data Miner 300 Built Enhanced Grunts 300 A7 Reached Mainframe 300 Met R17 at Cetus 500 Met R17 at Research 2000 Win 3000 Friendly Fire -264 Cogmind --------- Core Integrity 1575/1600 Matter 230/300 Energy 269/275 System Corruption 0% Temperature Cool (12) Movement Flying (26) Location To Epsilon Eridani Parts ------- > --- POWER (3) -------- Micro Antimatter Reactor Compact Particle Reactor Light Quantum Reactor > --- PROPULSION (8) --- Impulse Thruster Impulse Thruster Impulse Thruster Q-thruster Impulse Thruster Array Impulse Thruster Array > --- UTILITY (10) ----- Experimental Heat Sink Large Storage Unit Quantum Shading Machine Machine Analyzer Long-range Terrain Scanner Advanced Terrain Scan Processor Advanced Reaction Control System Hacking Suite Improved Hacking Suite Advanced Hacking Suite > --- WEAPON (4) ------- Nanosword Nanosword > --- INVENTORY (15) --- Hybrid Antimatter Reactor Light Particle Reactor Advanced Cooling System Energy Well (350) Advanced Matter Compressor (400) Advanced Melee Analysis Suite Advanced ECM Suite Improved Utility Shielding Improved Shield Generator Hellfire Missile Launcher Plasma Lance Dirty Bomb Trap Peak State ------------ > --- POWER ------------ Micro Antimatter Reactor Compact Particle Reactor Light Quantum Reactor > --- PROPULSION ------- Impulse Thruster Impulse Thruster Impulse Thruster Q-thruster Impulse Thruster Array Impulse Thruster Array > --- UTILITY ---------- Experimental Heat Sink Large Storage Unit Quantum Shading Machine Machine Analyzer Long-range Terrain Scanner Advanced Terrain Scan Processor Advanced Reaction Control System Hacking Suite Improved Hacking Suite Advanced Hacking Suite > --- WEAPON ----------- Hellfire Missile Launcher Nanosword Nanosword > --- INVENTORY -------- Hybrid Antimatter Reactor Light Particle Reactor Advanced Cooling System Energy Well Advanced Matter Compressor Advanced Melee Analysis Suite Advanced ECM Suite Improved Utility Shielding Improved Shield Generator Plasma Lance Dirty Bomb Trap [Rating: 171] Favorites ----------- Power Constructs Engine Improved Ion Engine Power Core Light Fission Core Reactor Constructs Propulsion Armored Wheel Treads Light Treads Leg Constructs Wheel Armored Wheel Flight Unit Xenon Bombardment Thruster Utility High-capacity Storage Unit Device Armored Scrap Engine Storage High-capacity Storage Unit Processor Machine Analyzer Hackware Advanced Hacking Suite Protection Hardened Light Armor Plating Weapon Constructs Energy Gun Improved EM Shotgun Energy Cannon Improved EM Pulse Cannon Ballistic Gun Minigun Ballistic Cannon Constructs Launcher Advanced Micro-nuke Launcher Special Weapon Welding Torch Slashing Weapon Nanosword Piercing Weapon Kinetic Spear Special Melee Weapon Advanced Datajack Build | -11 -10 -10 -9 -9 -9 -8 -8 -8 -8 -6 -6 -6 -6 -5 -5 -5 -5 -5 -5 -4 -4 -4 -4 -3 -2 -1 ------- Run | Yrd Mat Min Mat Min Exi Min Mat Sto Rec Fac Low Low Dat Pro Fac Ext Cet Arc Hub Fac Was Fac Arm Res Res Acc Slots Evolved 18 | . . . 2 . . . 2 . . 4 . . . . 2 . . . . 2 . . . 2 2 2 Power 2 | . . . . . . . . . . 1 . . . . . . . . . 1 . . . . . . Propulsion 6 | . . . 1 . . . . . . 2 . . . . 1 . . . . . . . . . 2 . Utility 8 | . . . 1 . . . 1 . . 1 . . . . 1 . . . . . . . . 2 . 2 Weapon 2 | . . . . . . . 1 . . . . . . . . . . . . 1 . . . . . . Parts Attached 276 | 7 12 3 42 10 5 . 16 22 10 21 6 6 1 6 10 4 5 1 5 4 . 7 16 44 8 5 Power 24 | 1 1 1 4 . 1 . 2 1 . 2 1 1 . . . . . . . . . . . 8 1 . Engine 13 | 1 1 1 4 . 1 . 2 1 . 1 . . . . . . . . . . . . . 1 . . Core 4 | . . . . . . . . . . 1 1 1 . . . . . . . . . . . 1 . . Reactor 7 | . . . . . . . . . . . . . . . . . . . . . . . . 6 1 . Propulsion 46 | 2 4 . 8 3 4 . 4 1 1 6 . . . . . . . . . . . . . 7 6 . Treads 13 | 2 1 . 5 3 . . 1 1 . . . . . . . . . . . . . . . . . . Leg 7 | . . . . . 2 . . . . 5 . . . . . . . . . . . . . . . . Wheel 13 | . 3 . 3 . 2 . 3 . 1 1 . . . . . . . . . . . . . . . . Hover . | . . . . . . . . . . . . . . . . . . . . . . . . . . . Flight 13 | . . . . . . . . . . . . . . . . . . . . . . . . 7 6 . Utility 105 | 2 1 . 7 1 . . 5 7 6 4 3 3 . 2 7 4 5 1 5 3 . 6 8 21 1 3 Device 60 | 1 . . 2 . . . 2 2 2 3 3 3 . 2 3 3 3 1 5 3 . 5 6 9 1 1 Storage 11 | 1 1 . 2 . . . 1 . 1 . . . . . 1 1 1 . . . . 1 . 1 . . Processor 10 | . . . . . . . . . . 1 . . . . 1 . . . . . . . . 6 . 2 Hackware 10 | . . . . . . . . 1 1 . . . . . 2 . . . . . . . 2 4 . . Protection 14 | . . . 3 1 . . 2 4 2 . . . . . . . 1 . . . . . . 1 . . Artifact . | . . . . . . . . . . . . . . . . . . . . . . . . . . . Weapon 101 | 2 6 2 23 6 . . 5 13 3 9 2 2 1 4 3 . . . . 1 . 1 8 8 . 2 Energy Gun 17 | 1 . . 6 3 . . 2 4 . 1 . . . . . . . . . . . . . . . . Energy Cannon 7 | . . . 1 . . . 2 2 . 1 . . . . . . . . . . . . 1 . . . Ballistic Gun 12 | 1 . . 8 1 . . . . . . . . . . . . . . . . . . . 2 . . Ballistic Cannon 21 | . 5 1 4 . . . . 5 3 1 . . . . 1 . . . . . . . . 1 . . Launcher 26 | . 1 1 3 2 . . 1 1 . 3 1 1 . 3 1 . . . . . . . 5 1 . 2 Special Weapon 1 | . . . 1 . . . . . . . . . . . . . . . . . . . . . . . Impact Weapon . | . . . . . . . . . . . . . . . . . . . . . . . . . . . Slashing Weapon 4 | . . . . . . . . 1 . 1 . . . . . . . . . . . . . 2 . . Piercing Weapon 9 | . . . . . . . . . . 2 1 1 1 1 1 . . . . . . . . 2 . . Special Melee Weapon 4 | . . . . . . . . . . . . . . . . . . . . 1 . 1 2 . . . Unidentified Prototypes 26 | . . . . . . . . 3 1 5 . . . . . 1 2 1 1 1 . . 1 10 . . Corrupted Parts 1 | . . . . . . . . . 1 . . . . . . . . . . . . . . . . . System Corruption 3 | . . . . . . . . . 3 . . . . . . . . . . . . . . . . . Parts Lost 50 | . . . 11 1 . . 1 7 2 11 3 . . 2 3 . 1 . . 1 1 1 2 3 . . Power 9 | . . . 1 . . . . 1 . 1 1 . . . 1 . 1 . . . . . 1 2 . . Propulsion 9 | . . . 2 . . . . . . 4 . . . . 2 . . . . . . 1 . . . . Utility 15 | . . . 4 1 . . . 3 1 1 1 . . 2 . . . . . . 1 . . 1 . . Weapon 17 | . . . 4 . . . 1 3 1 5 1 . . . . . . . . 1 . . 1 . . . Highest Loss Streak 9 | . . . 2 1 . . 1 1 1 9 3 . . 1 2 . 1 . . 1 1 1 2 1 . . To Critical Strikes 2 | . . . . . . . . . . 2 . . . . . . . . . . . . . . . . Average Slot Usage (%) 68 | . 99 100 96 100 100 . 99 96 75 51 60 58 53 65 49 47 47 47 47 42 38 40 41 48 78 84 Engine 4 | . 14 14 10 11 11 . 9 9 8 5 4 . . . . . . . . . . . . . . . Core 1 | . . . . . . . . . . . 2 6 13 13 5 5 1 . . . . . . 1 . . Reactor 1 | . . . . . . . . . . . . . . . . . 3 5 5 5 5 5 4 2 10 12 Treads 5 | . 16 . 11 28 22 . 9 9 8 . . . . . 1 . 3 . . . . 4 . . . . Leg 2 | . . . . . . . . . . 7 13 13 13 13 3 . 1 5 5 5 5 . 3 . . . Wheel 6 | . 11 28 21 4 10 . 18 18 12 1 . . . . . . . . . . . . . . . . Flight 1 | . . . . . . . . . . . . . . . . . . . . . . . . 13 24 24 Device 11 | . 14 14 13 11 11 . 8 8 15 11 11 15 13 19 11 11 10 11 11 9 8 9 9 8 9 16 Storage 7 | . 14 14 11 11 11 . 9 9 9 6 6 6 6 6 5 5 5 5 5 5 3 4 4 1 4 4 Processor 2 | . . . . . . . . . . 5 6 . . . 4 5 5 5 5 5 5 5 4 5 6 8 Hackware 2 | . . . . . . . . . . . . . . . 4 5 5 5 5 5 5 5 4 4 13 12 Protection 3 | . . . 5 11 11 . 18 16 5 . . . . . . . . . . . . . . . . . Energy Gun 3 | . 2 . 7 6 22 . 24 3 . . 1 . 6 2 . . . . . . . . . . . . Energy Cannon 1 | . . . . . . . 2 2 . 2 . . . 3 . 1 4 4 2 3 5 1 3 . . . Ballistic Gun 1 | . 1 . 9 14 . . . . . . 1 . . . . . . . . . . . . . . . Ballistic Cannon 5 | . 23 27 4 . . . . 19 14 2 . . . . 4 3 . . 2 1 . 3 1 . . . Peak Build Rating 171 | 7 11 11 22 23 40 40 40 42 54 97 105 95 88 105 105 105 110 110 115 116 110 111 119 127 159 171 Average Rating 68 | 5 8 10 18 21 23 40 34 38 47 66 91 85 80 98 92 100 101 108 111 109 103 101 107 67 137 163 On Entrance 68 | . 7 10 11 22 21 40 40 40 36 54 97 88 89 87 102 98 99 110 108 113 110 90 98 2 123 159 Naked Turns 41 | . . . . . . . . . . . . . . . . . . . . . . . 41 . . . Heaviest Build 119 | 14 52 52 58 59 59 59 117 119 116 68 69 73 66 76 81 78 71 70 96 96 80 65 101 57 62 64 Greatest Support 175 | 40 40 24 24 60 60 60 24 24 24 90 104 104 104 138 149 130 162 162 162 162 125 175 154 62 81 81 Greatest Overweight (x) 23 | . 2 2 4 2 2 . 4 4 8 4 2 . . . . . . 23 . . . . 1 1 . . Average Overweight (x) 1 | . 1 2 1 . 1 . 2 4 5 1 . . . . . . . 8 . . . . . . . . Largest Inventory Capacity 25 | 8 20 20 20 20 20 20 25 25 25 20 20 20 20 20 20 20 20 20 20 20 20 15 15 15 15 15 Average Capacity 19 | 7 12 20 20 20 20 20 22 25 24 20 20 20 20 20 20 20 20 20 20 20 15 13 14 9 15 15 Most Carried 25 | . 13 13 20 20 20 20 25 25 25 18 20 20 20 20 20 20 20 20 20 20 20 10 15 15 15 14 Average Carried 17 | . 5 12 16 19 19 20 21 24 23 15 18 18 19 19 19 19 19 19 19 19 15 7 12 7 14 11 Final Capacity 25 | 8 20 20 20 20 20 20 25 25 20 20 20 20 20 20 20 20 20 20 20 20 5 15 5 15 15 15 Final Carried 25 | . 12 13 20 20 20 20 25 23 18 17 17 20 20 20 20 20 20 19 20 20 5 10 5 15 15 12 Scrap Engine Consumption 261 | . . . . . . . . . 24 35 11 5 . 3 40 16 21 6 11 11 2 32 44 . . . Constructs Created 10 | . . . . . . . . . 3 3 . 1 . . 1 . . . . . . . 2 . . . Constructs Modified 96 | . . . . . . . . . 4 8 11 1 . 2 17 6 9 1 4 7 . 11 15 . . . Class Distribution -------------------- 47% | Construct 27% | Mutant 12% | Tank 3% | Scavenger-Mutant Dominant Class ---------------- Mutant | -10/Materials Mutant | -10/Mines Mutant | -9/Materials Scavenger-Mutant | -9/Mines Scavenger-Mutant | -9/Exiles Scavenger-Mutant | -8/Mines Tank | -8/Materials Tank | -8/Storage Construct | -8/Recycling Construct | -6/Factory Mutant | -6/Lower Caves Mutant | -6/Lower Caves Mutant | -6/Data Miner Construct | -5/Proximity Caves Construct | -5/Factory Construct | -5/Extension Commander-Construct | -5/Cetus Construct | -5/Archives Construct | -5/Hub_04(d) Construct | -4/Factory Construct | -4/Waste Construct | -4/Factory Construct | -4/Armory Mutant | -3/Research Scavenger-Sprinter | -2/Research Hacker-Scout | -1/Access Resources | -11 -10 -10 -9 -9 -9 -8 -8 -8 -8 -6 -6 -6 -6 -5 -5 -5 -5 -5 -5 -4 -4 -4 -4 -3 -2 -1 ----------- Run | Yrd Mat Min Mat Min Exi Min Mat Sto Rec Fac Low Low Dat Pro Fac Ext Cet Arc Hub Fac Was Fac Arm Res Res Acc Matter Collected 10027 | 271 619 298 1082 231 . . 273 1547 393 662 110 102 . 209 554 485 195 90 279 199 14 143 902 1159 69 141 Remotely . | . . . . . . . . . . . . . . . . . . . . . . . . . . . Salvage Created 19216 | 19 745 148 2251 366 . . 1325 2267 913 1457 313 31 . 116 1974 854 170 36 490 1061 . 1169 2469 454 270 318 Parts 966 | 3 50 15 147 18 . . 79 98 43 50 16 2 . 6 91 39 10 2 16 41 . 61 118 21 12 28 Haulers Intercepted 31 | . . . 5 . . . 5 6 . 2 . . . . 4 . . . 1 1 . 2 . 3 2 . Recyclers Shooed 13 | . 1 . 2 . . . . 1 2 4 . . . . 1 . . . 1 1 . . . . . . Parts Field Recycled . | . . . . . . . . . . . . . . . . . . . . . . . . . . . Retrieved Matter . | . . . . . . . . . . . . . . . . . . . . . . . . . . . Parts Self-Destructed 12 | . . . . . . . . . . . 5 1 . 6 . . . . . . . . . . . . Prevented 3 | . . . . . . . . . . . 3 . . . . . . . . . . . . . . . Kills | -11 -10 -10 -9 -9 -9 -8 -8 -8 -8 -6 -6 -6 -6 -5 -5 -5 -5 -5 -5 -4 -4 -4 -4 -3 -2 -1 ------- Run | Yrd Mat Min Mat Min Exi Min Mat Sto Rec Fac Low Low Dat Pro Fac Ext Cet Arc Hub Fac Was Fac Arm Res Res Acc Combat Hostiles Destroyed 313 | . 21 9 48 10 . . 23 41 7 24 7 3 . 4 23 7 3 . 4 13 . 12 49 . . 5 Melee 10 | . . . . . . . . . . 1 4 . . 1 2 . . . . . . . 1 . . 1 Guns 54 | . 2 . 27 7 . . 14 2 . 1 1 . . . . . . . . . . . . . . . Cannons 158 | . 16 6 14 . . . 3 28 7 7 . . . . 14 7 3 . 4 9 . 12 28 . . . AOE 82 | . 3 3 7 3 . . 6 6 . 14 2 3 . 3 7 . . . . 1 . . 20 . . 4 Classes Destroyed 27 | 1 6 1 7 1 . . 1 . 2 2 1 . . 1 . 1 . . . . . . 3 . . . Worker 20 | . . 2 5 . . . . 7 . . . . . . . . . . . 2 . 3 . 1 . . Builder 21 | . 1 . 3 . . . . 4 1 . . . . . 2 1 . . . 2 . 3 . 2 . 2 Tunneler 7 | 1 1 1 . 1 . . 1 . . 1 . . . . 1 . . . . . . . . . . . Hauler 31 | . . . 5 . . . 5 6 . 2 . . . . 4 . . . 1 1 . 2 . 3 2 . Recycler 28 | . 2 . . . . . 1 3 8 5 . . . . 4 3 . . 1 . . . . . . 1 Minesweeper 1 | . . . . . . . . . . . 1 . . . . . . . . . . . . . . . Mechanic 7 | . . . 1 . . . . 3 . 2 . . . . . . . . . . . . . . 1 . Operator 12 | . 2 . 1 . . . 1 2 . . . . . . . . . 1 . . . . 1 3 1 . Drone 1 | . . . . . . . . . . . . . . 1 . . . . . . . . . . . . Watcher 27 | . 3 . 5 . . . 2 2 . . . . . . 4 1 . . 1 1 . 4 2 1 . 1 Swarmer 76 | . 8 8 12 1 . . 10 4 . 6 2 3 . . 8 . . . . 2 . 3 5 . . 4 Saboteur 7 | . . . . . . . . . . . . . . . . . . . . . . . 7 . . . Grunt 122 | . 13 1 23 8 . . 9 24 . 4 1 . . 2 3 1 . . 2 5 . 4 22 . . . Brawler 4 | . . . 2 . . . . . . . . . . . 1 . . . . 1 . . . . . . Duelist 3 | . . . 1 . . . 1 1 . . . . . . . . . . . . . . . . . . Protector 5 | . . . 1 . . . . 2 . . . . . . . . . . . . . . 2 . . . Sentry 40 | . . . 9 . . . 2 9 4 2 1 . . . 2 4 . . . 3 . 3 1 . . . Demolisher 2 | . . . . . . . . . . . . . . . . . . . . . . . 2 . . . Specialist 4 | . . . . . . . . . . 2 . . . . . . . . . . . . 2 . . . Hunter 15 | . . . . . . . 1 1 . 5 2 . . 1 3 . . . . . . . 2 . . . Programmer 25 | . . . . . . . . . . 5 1 . . . 6 1 . . 2 2 . 2 5 . . 1 Heavy 1 | . . . . . . . . . . . . . . . . . . . . . . . 1 . . . Behemoth 1 | . . . . . . . . . . . . . . . . 1 . . . . . . . . . . Cetus Guard 3 | . . . . . . . . . . . . . . . . . 3 . . . . . . . . . Scientist 2 | . . . . . . . . . 2 . . . . . . . . . . . . . . . . . Scrapper 3 | . . . . . . . . . 3 . . . . . . . . . . . . . . . . . Zionite 1 | . . . 1 . . . . . . . . . . . . . . . . . . . . . . . Assembled 1 | . . . . 1 . . . . . . . . . . . . . . . . . . . . . . Best Kill Streak 13 | 1 6 5 8 6 . . 7 13 5 11 3 3 . 2 4 7 2 1 2 7 . 5 10 3 1 5 Combat Bots Only 9 | . 4 3 5 6 . . 4 6 3 7 3 3 . 2 4 4 2 . 2 6 . 3 9 . . 4 Max Kills in Single Turn 5 | 1 2 5 3 2 . . 4 3 2 4 2 3 . 2 3 2 1 1 2 3 . 2 4 1 1 4 Gunslinging 1 | . . . . 1 . . 1 . . . . . . . . . . . . . . . . . . . Exploded 4 | . 2 3 3 2 . . 3 2 . 2 2 3 . 2 3 . . . . 1 . . 4 . . 4 Melee 1 | . . . . . . . . . . 1 1 . . 1 1 . . . . . . . 1 . . 1 Uniques/NPCs Destroyed . | . . . . . . . . . . . . . . . . . . . . . . . . . . . Combat | -11 -10 -10 -9 -9 -9 -8 -8 -8 -8 -6 -6 -6 -6 -5 -5 -5 -5 -5 -5 -4 -4 -4 -4 -3 -2 -1 -------- Run | Yrd Mat Min Mat Min Exi Min Mat Sto Rec Fac Low Low Dat Pro Fac Ext Cet Arc Hub Fac Was Fac Arm Res Res Acc Hostile Shots Fired 1660 | . 74 33 185 38 . 1 44 173 16 231 130 32 . 8 121 22 23 3 9 50 8 81 329 18 21 10 Missed 521 | . 23 11 50 10 . . 15 54 4 67 30 15 . 4 30 4 6 1 1 15 2 22 127 7 18 5 Damage Taken 19662 | . 466 194 1585 377 . 18 346 1791 188 2811 1673 119 . 240 1702 293 570 550 215 778 290 1228 3666 375 70 117 Core 2670 | . 84 58 266 98 . . 19 151 33 498 149 . . 69 216 9 57 24 41 . . 111 644 93 25 25 Absorbed by Shields 541 | . . . 129 . . . . . 24 . 23 . . . 68 107 26 . . . . . 164 . . . Redirected to Shielding 13 | . . . . . . . . . . . . . . . . . . . . . . . . 13 . . Ignored by Resistances 166 | . . . . . . . . 66 . . . . . . . . . . . . . . 100 . . . Regen/Repaired (Parts) 4356 | . . . 11 . . . . . 80 150 172 . . . 563 508 490 145 82 186 . 589 1380 . . . Core Remaining (%) 61 | 100 . 43 . . . 9 . . 63 . . . . 15 . . . . 65 . . . 34 92 98 98 Volleys Fired 911 | 4 61 16 145 21 . . 45 125 31 80 8 2 . 13 82 31 14 7 24 39 2 51 93 12 . 5 Largest 3 | 2 2 2 2 2 . . 3 3 3 2 2 1 . 1 1 1 1 1 1 1 1 1 1 1 . 1 Hottest 192 | 70 70 70 90 90 . . 159 159 192 167 121 30 . 118 178 178 178 178 178 178 177 177 103 30 . 60 Shots Fired 1481 | 8 120 32 277 40 . . 127 347 65 81 10 2 . 13 82 31 14 7 24 39 2 51 92 12 . 5 Gun 455 | 8 26 . 185 38 . . 109 51 4 8 9 . . 5 . . . . . . . . . 12 . . Cannon 971 | . 92 31 89 . . . 17 292 61 59 . . . 4 79 31 14 7 24 39 2 51 79 . . . Launcher 55 | . 2 1 3 2 . . 1 4 . 14 1 2 . 4 3 . . . . . . . 13 . . 5 Special . | . . . . . . . . . . . . . . . . . . . . . . . . . . . Kinetic 904 | 4 105 31 183 34 . . . 259 60 27 3 . . . 44 25 . 7 11 18 . 41 40 12 . . Thermal 154 | 4 13 . . . . . . . 5 9 2 . . 4 35 6 14 . 13 . . 10 39 . . . Explosive 55 | . 2 1 3 2 . . 1 4 . 14 1 2 . 4 3 . . . . . . . 13 . . 5 Electromagnetic 368 | . . . 91 4 . . 126 84 . 31 4 . . 5 . . . . . 21 2 . . . . . Robot Hit Streak 22 | 7 8 4 20 22 . . 16 15 6 10 4 . . 4 16 11 5 2 3 13 . 11 10 6 . 2 Robot Miss Streak 6 | . 5 4 5 2 . . 6 5 5 6 1 . . 2 4 3 4 5 2 2 . 4 4 1 . 1 Penetration Max 2 | . . . . . . . . . . . . . . . 1 1 . . 1 2 . 2 . . . . Secondary Targets 6 | . . . 1 3 . . 2 . . . . . . . . . . . . . . . . . . . Max Gunslinging Chain 1 | . . . 1 1 . . 1 . . . . . . . . . . . . . . . . . . . Shots Hit Robots 1035 | 7 60 12 191 27 . . 93 195 45 70 28 . . 7 63 25 8 4 13 29 . 25 89 28 10 6 Core Hits 685 | 3 34 15 104 13 . . 64 103 36 87 14 4 . 8 35 11 3 1 5 16 . 14 97 6 3 9 Critical Kills 3 | . . . . . . . . . . . . . . . . 2 . . . 1 . . . . . . Critical Parts Destroyed 9 | . . . 1 . . . . . . . . . . . 1 2 1 1 1 2 . . . . . . Critical Strikes 42 | 1 2 . 3 . . . 1 5 1 2 3 . . 1 4 6 1 2 1 3 . . 3 3 . . Burn 6 | 1 1 . . . . . . . . 1 . . . . . . . . . . . . 3 . . . Destroy 16 | . . . 1 . . . . . . . . . . . 2 6 1 2 1 3 . . . . . . Blast 11 | . 1 . 2 . . . . 5 1 . . . . . 2 . . . . . . . . . . . Corrupt 1 | . . . . . . . 1 . . . . . . . . . . . . . . . . . . . Sever 2 | . . . . . . . . . . 1 . . . . . . . . . . . . . 1 . . Impale 6 | . . . . . . . . . . . 3 . . 1 . . . . . . . . . 2 . . Melee Attacks 151 | . . . . . . . . 1 . 7 30 . . 3 20 . . . . 1 . 1 16 35 21 16 Impact . | . . . . . . . . . . . . . . . . . . . . . . . . . . . Slashing 75 | . . . . . . . . 1 . 7 . . . . . . . . . . . . . 30 21 16 Piercing 58 | . . . . . . . . . . . 30 . . 3 20 . . . . . . . . 5 . . Sneak Attacks 40 | . . . . . . . . . . 1 2 . . 1 3 . . . . 1 . 1 16 6 5 4 Combat Hostiles 3 | . . . . . . . . . . . . . . 1 . . . . . . . . . . 1 1 Follow-up Attacks 7 | . . . . . . . . . . . 2 . . . . . . . . . . . . 4 1 . Damage Inflicted 56001 | 73 1108 464 4048 636 . . 1989 5780 972 4557 1402 194 . 1063 5259 2986 1187 551 1627 3080 . 3891 11227 1854 940 1113 Guns 6136 | 73 179 . 2367 454 . . 1394 874 72 214 187 . . 111 . . . . . . . . . 211 . . Cannons 33391 | . 815 263 1107 . . . 185 3833 900 1599 . . . 67 3944 2986 1187 551 1627 2943 . 3697 7687 . . . Explosions 11324 | . 114 201 574 182 . . 410 1073 . 2436 217 194 . 791 697 . . . . 137 . 194 3540 . . 564 Melee 5148 | . . . . . . . . . . 308 998 . . 94 618 . . . . . . . . 1641 940 549 Ramming 2 | . . . . . . . . . . . . . . . . . . . . . . . . 2 . . Kinetic 24658 | 36 884 263 2218 407 . . . 3087 840 1036 75 . . . 2844 2775 . 551 822 1922 . 2852 3835 211 . . Thermal 9814 | 37 110 . 297 . . . 213 314 132 336 30 . . 67 1100 211 1187 . 805 84 . 1039 3852 . . . Explosive 10048 | . 114 201 277 182 . . 197 759 . 2315 217 194 . 791 697 . . . . . . . 3540 . . 564 Electromagnetic 6331 | . . . 1256 47 . . 1579 1620 . 562 82 . . 111 . . . . . 1074 . . . . . . Impact . | . . . . . . . . . . . . . . . . . . . . . . . . . . . Slashing 3050 | . . . . . . . . . . 308 . . . . . . . . . . . . . 1253 940 549 Piercing 2098 | . . . . . . . . . . . 998 . . 94 618 . . . . . . . . 388 . . Highest Corruption 13 | . 5 5 . . . . . . 3 8 9 9 . . 1 . . . 1 2 13 13 2 3 . . Average Corruption 3 | . 2 5 . . . . . . 3 4 8 5 . . 1 . . . 1 1 8 8 1 3 . . Corruption Purged 24 | . . . . . . . . . . . . 9 . . 2 . . . . . . 13 . . . . Corruption Blocked . | . . . . . . . . . . . . . . . . . . . . . . . . . . . Effects 117 | . 12 12 . . . . . . 1 18 28 13 . . 5 . . . 3 5 7 8 4 1 . . Message Errors 27 | . 2 3 . . . . . . . 5 6 3 . . 1 . . . 1 1 1 3 . 1 . . Matter Fused 29 | . 2 3 . . . . . . 1 4 5 4 . . . . . . 2 3 1 2 2 . . . Heat Flow Errors 17 | . 1 2 . . . . . . . 2 5 4 . . . . . . . 1 2 . . . . . Energy Discharges 21 | . 3 2 . . . . . . . 2 6 2 . . 2 . . . . . 2 2 . . . . Parts Fused 1 | . . . . . . . . . . 1 . . . . . . . . . . . . . . . . Data Loss (minor) 12 | . 2 1 . . . . . . . 2 4 . . . 2 . . . . . . 1 . . . . Data Loss (major) 3 | . 2 . . . . . . . . . . . . . . . . . . . . . 1 . . . Misfires 1 | . . 1 . . . . . . . . . . . . . . . . . . . . . . . . Alerts 2 | . . . . . . . . . . 1 1 . . . . . . . . . . . . . . . Misdirections 1 | . . . . . . . . . . . . . . . . . . . . . 1 . . . . . Weapon Failures 3 | . . . . . . . . . . 1 1 . . . . . . . . . . . 1 . . . Overload Shots 1 | . . . . . . . . . . 1 . . . . . . . . . . . . . . . . Overflow Damage 4710 | . 1 . 8 21 . . 2 102 49 135 102 . . 48 466 111 3 6 361 248 . 1036 1306 529 100 76 Projectiles 3356 | . 1 . 8 . . . . 36 49 14 . . . 6 453 111 3 6 361 194 . 1036 1078 . . . Explosions 617 | . . . . 21 . . 2 66 . 121 . . . 42 7 . . . . 54 . . 228 . . 76 Melee 737 | . . . . . . . . . . . 102 . . . 6 . . . . . . . . 529 100 . Knockbacks 115 | . 5 2 8 . . . . 37 7 9 . . . . 12 4 . . 3 2 . 8 18 . . . Impact . | . . . . . . . . . . . . . . . . . . . . . . . . . . . Kinetic 110 | . 5 2 8 . . . . 35 7 9 . . . . 11 3 . . 3 2 . 7 18 . . . Secondary 5 | . . . . . . . . 2 . . . . . . 1 1 . . . . . 1 . . . . Self-Inflicted Damage 534 | . . 15 35 3 . . . . . 126 . 22 . 62 77 . . . . 93 . . 100 1 . . Shots 14 | . . 1 1 1 . . . . . 4 . 1 . 1 1 . . . . 2 . . 2 . . . Rammed 2 | . . . . . . . . . . . . . . . . . . . . . . . . 2 . . Targets Rammed 2 | . . . . . . . . . . . . . . . . . . . . . . . . 2 . . Kicked . | . . . . . . . . . . . . . . . . . . . . . . . . . . . Crushed . | . . . . . . . . . . . . . . . . . . . . . . . . . . . Highest Temperature 483 | 50 260 223 199 170 . 14 299 420 267 349 250 240 . 66 329 329 377 296 305 483 154 480 337 453 121 . Average Temperature 93 | 24 46 50 58 62 . 7 100 118 74 94 93 104 . 31 87 141 132 132 96 114 70 159 128 50 38 . Received Heat Transfer 4073 | . 144 18 669 231 . 27 117 810 100 186 66 . . 57 96 86 108 . 63 144 . 328 751 18 54 . Effects 21 | . . . . . . . . 9 . 1 . . . . 2 . 1 1 . . . 4 . 3 . . Shutdowns 3 | . . . . . . . . 1 . . . . . . . . 1 . . . . 1 . . . . Energy Bleed 5 | . . . . . . . . 2 . 1 . . . . . . . 1 . . . . . 1 . . Interference 11 | . . . . . . . . 5 . . . . . . 2 . . . . . . 3 . 1 . . Short Circuit 1 | . . . . . . . . . . . . . . . . . . . . . . . . 1 . . Damage (minor) 1 | . . . . . . . . 1 . . . . . . . . . . . . . . . . . . Siege Activations . | . . . . . . . . . . . . . . . . . . . . . . . . . . . Robots Corrupted 10 | . . . . . . . . 5 . 2 . . . . . . . . . 3 . . . . . . Combat Hostiles 9 | . . . . . . . . 5 . 1 . . . . . . . . . 3 . . . . . . Parts Fried 50 | . . . 7 1 . . 15 12 . 3 2 . . . . . . . . 8 . 2 . . . . Impact Corruptions 1 | . . . . . . . . . . . . . . . . . . . . . . 1 . . . . Robots Melted . | . . . . . . . . . . . . . . . . . . . . . . . . . . . Combat Hostiles . | . . . . . . . . . . . . . . . . . . . . . . . . . . . Parts Melted 10 | . 1 . . . . . . 1 2 2 . . . . 1 . . . . . . . 3 . . . Heat Transferred 5340 | 185 407 . 376 . . . 300 394 222 459 37 . . 37 703 50 250 . 259 50 . 450 1161 . . . Parts Sabotaged 3 | . . . . . . . . . . . . . . . . . . . . . . . 3 . . . Parts Stolen . | . . . . . . . . . . . . . . . . . . . . . . . . . . . Parts Stripped . | . . . . . . . . . . . . . . . . . . . . . . . . . . . Power Chain Reactions 15 | . . . 5 . . . 5 3 . . . . . . . . . . . 1 . . . . 1 . Alert | -11 -10 -10 -9 -9 -9 -8 -8 -8 -8 -6 -6 -6 -6 -5 -5 -5 -5 -5 -5 -4 -4 -4 -4 -3 -2 -1 ------- Run | Yrd Mat Min Mat Min Exi Min Mat Sto Rec Fac Low Low Dat Pro Fac Ext Cet Arc Hub Fac Was Fac Arm Res Res Acc Peak Influence 1541 | 5 398 453 1335 697 . . 302 898 480 491 . . . . 494 509 496 315 627 747 221 806 1541 907 482 636 Initial 808 | . 3 154 128 505 . . . 105 349 310 . . . . 77 210 221 118 . 306 221 136 366 808 432 170 Average 402 | 3 251 301 835 593 . . 119 603 219 219 . . . . 261 261 321 166 336 568 208 423 531 805 156 318 Maximum Alert Level 4 | . 1 2 4 2 . . 1 3 2 2 . . . . 2 2 2 1 2 3 1 3 4 3 2 2 Low Security (%) 25 | 100 32 1 8 . . 100 73 5 37 55 . . . . 21 43 . 62 13 . 32 27 . . 72 37 Level 1 37 | . 67 93 3 . . . 26 13 45 31 . . . . 74 46 96 37 62 13 67 27 46 . 16 26 Level 2 19 | . . 5 29 100 . . . 26 16 13 . . . . 4 10 3 . 23 77 . 33 31 . 11 36 Level 3 13 | . . . 25 . . . . 53 . . . . . . . . . . . 8 . 11 10 100 . . Level 4 4 | . . . 33 . . . . . . . . . . . . . . . . . . . 11 . . . Level 5 . | . . . . . . . . . . . . . . . . . . . . . . . . . . . High Security . | . . . . . . . . . . . . . . . . . . . . . . . . . . . Max Security . | . . . . . . . . . . . . . . . . . . . . . . . . . . . Squads Dispatched 66 | . 4 . 7 . . . 2 8 . 5 . . . . 9 1 . . 7 4 . 4 7 6 1 1 Investigation 15 | . 3 . 3 . . . 1 1 . . . . . . . . . . 3 . . 2 . 1 1 . Extermination 14 | . . . . . . . . . . 3 . . . . 4 . . . 1 2 . 1 3 . . . Reinforcement 27 | . 1 . 2 . . . 1 4 . 2 . . . . 5 1 . . 3 1 . . 2 5 . . Assault 10 | . . . 2 . . . . 3 . . . . . . . . . . . 1 . 1 2 . . 1 Garrison . | . . . . . . . . . . . . . . . . . . . . . . . . . . . Intercept . | . . . . . . . . . . . . . . . . . . . . . . . . . . . Searches Triggered 1 | . . . . . . . . . . 1 . . . . . . . . . . . . . . . . Data Miner Redirects 1 | . . . . . . . . . . . . . . . . . . . . . . 1 . . . . Construction Impeded 6 | . . . . . . . . 2 . 1 . . . . 3 . . . . . . . . . . . Haulers Reinforced 6 | . . . . . . . . . . . . . . . 1 . . . 2 1 . . . 2 . . Active Scanning Responses . | . . . . . . . . . . . . . . . . . . . . . . . . . . . Cargo Convoy Interrupts 1 | . . . . . . . . . . 1 . . . . . . . . . . . . . . . . Stealth | -11 -10 -10 -9 -9 -9 -8 -8 -8 -8 -6 -6 -6 -6 -5 -5 -5 -5 -5 -5 -4 -4 -4 -4 -3 -2 -1 --------- Run | Yrd Mat Min Mat Min Exi Min Mat Sto Rec Fac Low Low Dat Pro Fac Ext Cet Arc Hub Fac Was Fac Arm Res Res Acc Distress Signals 41 | . 4 . 3 2 . . 3 2 . . . . . . . 1 2 . 3 1 . 3 5 9 2 1 Communications Jammed . | . . . . . . . . . . . . . . . . . . . . . . . . . . . Distress Signals . | . . . . . . . . . . . . . . . . . . . . . . . . . . . Times Spotted 530 | . 27 14 75 10 . 3 27 51 5 33 11 1 . 11 25 20 10 4 15 13 6 35 84 23 15 12 Peak Tracking Total 16 | . 5 3 5 4 . 3 5 8 3 8 4 1 . 4 4 4 5 1 4 6 6 8 16 7 11 6 Tactical Retreats 39 | . 1 . 9 . . . 2 6 . 1 . . . 1 1 1 . . 1 . . 3 5 5 1 2 Traps | -11 -10 -10 -9 -9 -9 -8 -8 -8 -8 -6 -6 -6 -6 -5 -5 -5 -5 -5 -5 -4 -4 -4 -4 -3 -2 -1 ------- Run | Yrd Mat Min Mat Min Exi Min Mat Sto Rec Fac Low Low Dat Pro Fac Ext Cet Arc Hub Fac Was Fac Arm Res Res Acc Traps Triggered 26 | . 5 . 4 . . . . 1 . . . . . . . 4 . . 5 3 . 1 2 1 . . Indirectly . | . . . . . . . . . . . . . . . . . . . . . . . . . . . Trap Hack Attempts . | . . . . . . . . . . . . . . . . . . . . . . . . . . . Triggered . | . . . . . . . . . . . . . . . . . . . . . . . . . . . Disarmed . | . . . . . . . . . . . . . . . . . . . . . . . . . . . Reprogrammed 5 | . 5 . . . . . . . . . . . . . . . . . . . . . . . . . Reused 1 | . . . . . . . . . . . 1 . . . . . . . . . . . . . . . Traps Extracted . | . . . . . . . . . . . . . . . . . . . . . . . . . . . Installed 1 | . . . . . . . . . . . 1 . . . . . . . . . . . . . . . Triggered 1 | . . . . . . . . . . . 1 . . . . . . . . . . . . . . . Most Traps Carried 3 | . . . . . . . . . . . 3 2 2 2 2 2 2 2 2 2 2 1 1 1 1 1 Machines | -11 -10 -10 -9 -9 -9 -8 -8 -8 -8 -6 -6 -6 -6 -5 -5 -5 -5 -5 -5 -4 -4 -4 -4 -3 -2 -1 ---------- Run | Yrd Mat Min Mat Min Exi Min Mat Sto Rec Fac Low Low Dat Pro Fac Ext Cet Arc Hub Fac Was Fac Arm Res Res Acc Machines Disabled 68 | . 1 2 3 2 . . . 6 2 6 . . . 1 5 5 1 1 6 4 . 12 9 1 . 1 Max in Single Turn 5 | . 1 1 1 2 . . . 2 1 3 . . . 1 2 1 1 . 1 2 . 5 1 1 . 1 Garrison Access 3 | . . . . . . . . 1 . . . . . . . . . . . . . 1 . . . 1 Network Hub 1 | . . . . . . . . . . . . . . . . . . . 1 . . . . . . . Energy Cycler 1 | . . . . . . . . . . . . . . . . . . . . . . . 1 . . . Machines Repaired . | . . . . . . . . . . . . . . . . . . . . . . . . . . . Machines Dismantled . | . . . . . . . . . . . . . . . . . . . . . . . . . . . Machines Sabotaged 1 | . . . . . . . . . . . . . . . . . . . 1 . . . . . . . Overloaded Fab Kills 5 | . . . . . . . . . . . . . . . . . . . . . . . . . 5 . Hacking | -11 -10 -10 -9 -9 -9 -8 -8 -8 -8 -6 -6 -6 -6 -5 -5 -5 -5 -5 -5 -4 -4 -4 -4 -3 -2 -1 --------- Run | Yrd Mat Min Mat Min Exi Min Mat Sto Rec Fac Low Low Dat Pro Fac Ext Cet Arc Hub Fac Was Fac Arm Res Res Acc Machines Accessed 110 | . 9 . 10 . 2 . 7 10 12 10 . 1 3 . 9 3 1 . 4 1 . 7 7 6 4 4 Terminals 76 | . 7 . 6 . . . 6 9 6 7 . . . . 7 3 1 . 4 1 . 2 6 5 3 3 Fabricators 7 | . . . . . . . . . . 2 . . . . 1 . . . . . . 2 1 . 1 . Repair Stations 1 | . . . 1 . . . . . . . . . . . . . . . . . . . . . . . Recycling Units 14 | . 2 . 1 . . . 1 . 5 1 . . . . 1 . . . . . . 2 . 1 . . Scanalyzers 2 | . . . 2 . . . . . . . . . . . . . . . . . . . . . . . Garrison Access 3 | . . . . . . . . 1 . . . . . . . . . . . . . 1 . . . 1 Total Hacks 319 | . 28 . 45 . 2 . 21 24 24 26 . 1 22 . 24 4 1 . 8 6 . 16 35 12 11 9 Successful 164 | . 17 . 21 . 2 . 12 10 9 9 . 1 22 . 15 1 . . 7 2 . 7 15 1 9 4 Failed 154 | . 10 . 24 . . . 9 14 15 17 . . . . 9 3 1 . 1 4 . 9 20 11 2 5 Catastrophic 31 | . 1 . 2 . . . 1 2 5 2 . . . . . 2 1 . . 2 . 2 4 6 . 1 Database Lockouts 1 | . 1 . . . . . . . . . . . . . . . . . . . . . . . . . Manual 139 | . 10 . 21 . 1 . 12 8 11 14 . . . . 7 4 1 . 7 2 . 8 20 3 8 2 Terminals 234 | . 25 . 30 . . . 20 23 16 18 . . . . 18 4 1 . 8 6 . 8 28 11 10 8 Fabricators 22 | . . . . . . . . . . 7 . . . . 3 . . . . . . 4 7 . 1 . Repair Stations 4 | . . . 4 . . . . . . . . . . . . . . . . . . . . . . . Recycling Units 19 | . 3 . 1 . . . 1 . 6 1 . . . . 3 . . . . . . 3 . 1 . . Scanalyzers 10 | . . . 10 . . . . . . . . . . . . . . . . . . . . . . . Garrison Access 3 | . . . . . . . . 1 . . . . . . . . . . . . . 1 . . . 1 Terminal Hacks 96 | . 13 . 9 . 2 . 9 6 5 2 . 1 22 . 8 . . . 2 1 . 1 7 . 6 2 Record 3 | . . . . . 1 . . . . . . . 2 . . . . . . . . . . . . . Part Schematic 15 | . . . . . . . . . 1 . . . 13 . . . . . . . . . 1 . . . Robot Schematic 4 | . . . . . . . . . . . . . 4 . . . . . . . . . . . . . Robot Analysis 5 | . 2 . 1 . . . 1 . . . . . . . . . . . . . . . . . 1 . Prototype ID Bank 13 | . 3 . 2 . . . 2 . 1 . . . 3 . . . . . . . . . 1 . 1 . Open Door 5 | . . . . . . . . 3 . . . 1 . . . . . . . . . . . . . 1 Level Access Points 2 | . . . . . . . . . . . . . . . . . . . . . . . . . 1 1 Branch Access Points 6 | . . . 1 . . . 1 . . 1 . . . . 1 . . . . 1 . 1 . . . . Emergency Access Points 1 | . . . . . . . . . . . . . . . . . . . . . . . 1 . . . Machine Index 1 | . . . . . . . . . . . . . . . 1 . . . . . . . . . . . Terminal Index 6 | . 1 . 1 . . . . 1 . . . . . . 1 . . . 1 . . . 1 . . . Scanalyzer Index 1 | . . . 1 . . . . . . . . . . . . . . . . . . . . . . . Alert Level 9 | . 1 . 2 . . . 2 1 1 . . . . . 1 . . . . . . . 1 . . . Unreport Threat 9 | . . . . . . . 1 1 . 1 . . . . 1 . . . . . . . 2 . 3 . Locate Traps 1 | . 1 . . . . . . . . . . . . . . . . . . . . . . . . . Reprogram Traps 2 | . 2 . . . . . . . . . . . . . . . . . . . . . . . . . Dispatch Records 1 | . 1 . . . . . . . . . . . . . . . . . . . . . . . . . Patrol Status 1 | . . . . . . . . . . . . . . . 1 . . . . . . . . . . . Recall Reinforcements 1 | . . . . . . . . . . . . . . . . . . . 1 . . . . . . . Hauler Manifests 4 | . 1 . 1 . . . 1 . . . . . . . 1 . . . . . . . . . . . Zone Layout 3 | . 1 . . . . . 1 . . . . . . . 1 . . . . . . . . . . . Derelict Proto ID Bank 1 | . . . . . 1 . . . . . . . . . . . . . . . . . . . . . Release Object 2 | . . . . . . . . . 2 . . . . . . . . . . . . . . . . . Fabricator Hacks 6 | . . . . . . . . . . 3 . . . . . . . . . . . 1 2 . . . Load Schematic 3 | . . . . . . . . . . 1 . . . . . . . . . . . 1 1 . . . Build 3 | . . . . . . . . . . 2 . . . . . . . . . . . . 1 . . . Repair Station Hacks 2 | . . . 2 . . . . . . . . . . . . . . . . . . . . . . . Scan Component 1 | . . . 1 . . . . . . . . . . . . . . . . . . . . . . . Repair 1 | . . . 1 . . . . . . . . . . . . . . . . . . . . . . . Recycling Unit Hacks 3 | . . . . . . . . . 1 . . . . . 1 . . . . . . 1 . . . . Retrieve Components 3 | . . . . . . . . . 1 . . . . . 1 . . . . . . 1 . . . . Scanalyzer 5 | . . . 5 . . . . . . . . . . . . . . . . . . . . . . . Insert Component 3 | . . . 3 . . . . . . . . . . . . . . . . . . . . . . . Analyze 2 | . . . 2 . . . . . . . . . . . . . . . . . . . . . . . Garrison Access Hacks 3 | . . . . . . . . 1 . . . . . . . . . . . . . 1 . . . 1 Seal Access 3 | . . . . . . . . 1 . . . . . . . . . . . . . 1 . . . 1 Unauthorized Hacks 49 | . 4 . 5 . . . 3 3 3 4 . . . . 6 1 . . 5 1 . 3 6 1 3 1 Terminals 33 | . 2 . 4 . . . 2 3 . 3 . . . . 2 1 . . 5 1 . 1 5 1 2 1 Track 3 | . . . 1 . . . . . . . . . . . . . . . . . . . 2 . . . Assimilate 1 | . . . . . . . . . . 1 . . . . . . . . . . . . . . . . Botnet 24 | . 2 . 3 . . . 2 2 . 2 . . . . 2 1 . . 2 1 . 1 2 1 2 1 Disrupt 1 | . . . . . . . . 1 . . . . . . . . . . . . . . . . . . Operators 1 | . . . . . . . . . . . . . . . . . . . . . . . 1 . . . Sabotage 3 | . . . . . . . . . . . . . . . . . . . 3 . . . . . . . Fabricators 6 | . . . . . . . . . . 1 . . . . 2 . . . . . . 1 1 . 1 . Report 2 | . . . . . . . . . . 1 . . . . 1 . . . . . . . . . . . Prioritize 1 | . . . . . . . . . . . . . . . . . . . . . . . 1 . . . Haulers 1 | . . . . . . . . . . . . . . . 1 . . . . . . . . . . . Overload 1 | . . . . . . . . . . . . . . . . . . . . . . . . . 1 . Recompile 1 | . . . . . . . . . . . . . . . . . . . . . . 1 . . . . Repair Stations . | . . . . . . . . . . . . . . . . . . . . . . . . . . . Recycling Units 10 | . 2 . 1 . . . 1 . 3 . . . . . 2 . . . . . . 1 . . . . Reject 2 | . . . . . . . . . . . . . . . 1 . . . . . . 1 . . . . Mask 1 | . . . . . . . . . . . . . . . 1 . . . . . . . . . . . Tunnel 7 | . 2 . 1 . . . 1 . 3 . . . . . . . . . . . . . . . . . Scanalyzers . | . . . . . . . . . . . . . . . . . . . . . . . . . . . Garrison Access . | . . . . . . . . . . . . . . . . . . . . . . . . . . . Data Cores Recovered 2 | . 1 . . . . . . . . . . . . . . . . . . . . . . . 1 . Used 1 | . . . . . . . . . . . . . . . . . . . . . . . . . 1 . Hacking Detections 81 | . 4 . 9 . . . 6 7 7 10 . . . . 9 3 1 . 2 1 . 4 7 6 2 3 Full Trace Events 6 | . 1 . 1 . . . . . 3 . . . . . . . . . . . . . . 1 . . Feedback Events . | . . . . . . . . . . . . . . . . . . . . . . . . . . . Feedback Blocked . | . . . . . . . . . . . . . . . . . . . . . . . . . . . Robot Schematics Acquired 4 | . . . . . . . . . . . . . 4 . . . . . . . . . . . . . Robots Built . | . . . . . . . . . . . . . . . . . . . . . . . . . . . Authchips . | . . . . . . . . . . . . . . . . . . . . . . . . . . . Time . | . . . . . . . . . . . . . . . . . . . . . . . . . . . Total Robot Build Rating . | . . . . . . . . . . . . . . . . . . . . . . . . . . . Part Schematics Acquired 15 | . . . . . . . . . 1 . . . 13 . . . . . . . . . 1 . . . Parts Built 6 | . . . . . . . . . . 4 . . . . . . . . . . . . 2 . . . Authchips 2 | . . . . . . . . . . 1 . . . . . . . . . . . . 1 . . . Time 95 | . . . . . . . . . . 83 . . . . . . . . . . . . 12 . . . Total Part Build Rating 22 | . . . . . . . . . . 16 . . . . . . . . . . . . 6 . . . Parts Repaired 1 | . . . 1 . . . . . . . . . . . . . . . . . . . . . . . Time 136 | . . . 136 . . . . . . . . . . . . . . . . . . . . . . . Parts Recycled . | . . . . . . . . . . . . . . . . . . . . . . . . . . . Recycled Matter . | . . . . . . . . . . . . . . . . . . . . . . . . . . . Retrieved Matter . | . . . . . . . . . . . . . . . . . . . . . . . . . . . Retrieved Components 16 | . . . . . . . . . 4 . . . . . 9 . . . . . . 3 . . . . Parts Scanalyzed 1 | . . . 1 . . . . . . . . . . . . . . . . . . . . . . . Part Schematics Acquired . | . . . . . . . . . . . . . . . . . . . . . . . . . . . Parts Damaged 1 | . . . 1 . . . . . . . . . . . . . . . . . . . . . . . Bothacking | -11 -10 -10 -9 -9 -9 -8 -8 -8 -8 -6 -6 -6 -6 -5 -5 -5 -5 -5 -5 -4 -4 -4 -4 -3 -2 -1 ------------ Run | Yrd Mat Min Mat Min Exi Min Mat Sto Rec Fac Low Low Dat Pro Fac Ext Cet Arc Hub Fac Was Fac Arm Res Res Acc Used RIF Installer . | . . . . . . . . . . . . . . . . . . . . . . . . . . . Robots Hacked 1 | . . . . . . . . . . . . . . . . . . . . 1 . . . . . . Non-combat 1 | . . . . . . . . . . . . . . . . . . . . 1 . . . . . . Combat . | . . . . . . . . . . . . . . . . . . . . . . . . . . . Robot Hacks Applied 1 | . . . . . . . . . . . . . . . . . . . . 1 . . . . . . find_chute 1 | . . . . . . . . . . . . . . . . . . . . 1 . . . . . . Relay Couplers Released . | . . . . . . . . . . . . . . . . . . . . . . . . . . . Fabnet Peak Effective % . | . . . . . . . . . . . . . . . . . . . . . . . . . . . Robots Rewired 14 | . . . . . . . . . . . . . . . . 6 . . . . . . 8 . . . Allies Hacked . | . . . . . . . . . . . . . . . . . . . . . . . . . . . Hacks Repelled . | . . . . . . . . . . . . . . . . . . . . . . . . . . . Allies | -11 -10 -10 -9 -9 -9 -8 -8 -8 -8 -6 -6 -6 -6 -5 -5 -5 -5 -5 -5 -4 -4 -4 -4 -3 -2 -1 -------- Run | Yrd Mat Min Mat Min Exi Min Mat Sto Rec Fac Low Low Dat Pro Fac Ext Cet Arc Hub Fac Was Fac Arm Res Res Acc Total Allies 41 | . . 3 . . . . . 2 . 1 . . . 1 . 20 5 . . . 1 . 8 . . . Largest Group 11 | . . 3 2 . . . . 2 . 1 . . . 1 . 10 11 9 3 . 1 . 4 . . . Highest-Rated Group 782 | . . 80 49 . . . . 62 . 26 . . . 96 . 428 782 528 271 . 46 . 272 . . . Highest-Rated Ally 159 | . . 31 31 . . . . 31 . 26 . . . 96 . 159 159 96 96 . 46 . 68 . . . Total Orders 9 | . . . . . . . . . . . . 4 . . . . . . . . . . 3 2 . . EXPLORE 9 | . . . . . . . . . . . . 4 . . . . . . . . . . 3 2 . . Ally Attacks 383 | . . 15 1 . . . . 16 . . . . . 31 . 126 93 23 44 . 6 . 28 . . . Total Damage 10857 | . . 189 . . . . . 252 . . . . . 1199 . 2711 2248 631 1979 . 218 . 1430 . . . Kills 59 | . . 3 . . . . . . . . . . . 8 . 15 9 4 16 . . . 4 . . . Allies Corrupted 1 | . . . . . . . . . . . . . . . . . . . 1 . . . . . . . Allies Melted . | . . . . . . . . . . . . . . . . . . . . . . . . . . . Intel | -11 -10 -10 -9 -9 -9 -8 -8 -8 -8 -6 -6 -6 -6 -5 -5 -5 -5 -5 -5 -4 -4 -4 -4 -3 -2 -1 ------- Run | Yrd Mat Min Mat Min Exi Min Mat Sto Rec Fac Low Low Dat Pro Fac Ext Cet Arc Hub Fac Was Fac Arm Res Res Acc Robot Analysis Total 5 | . 2 . 1 . . . 1 . . . . . . . . . . . . . . . . . 1 . Derelict Logs Recovered 6 | . . 1 . 1 . . . . . . 1 1 . 2 . . . . . . . . . . . . Drone Launches 13 | . . . . . . . . . . . . 4 . . . . . . . . . . 7 2 . . Drone Recoveries 9 | . . . . . . . . . . . . 2 . . . . . . . . . . 5 2 . . Exploration | -11 -10 -10 -9 -9 -9 -8 -8 -8 -8 -6 -6 -6 -6 -5 -5 -5 -5 -5 -5 -4 -4 -4 -4 -3 -2 -1 ------------- Run | Yrd Mat Min Mat Min Exi Min Mat Sto Rec Fac Low Low Dat Pro Fac Ext Cet Arc Hub Fac Was Fac Arm Res Res Acc Turns Passed 24664 | 113 1167 631 2155 704 449 4 1326 1713 1934 1410 843 632 89 774 2024 1305 755 1005 644 797 143 1041 1509 1041 203 253 Spaces Moved 16244 | 54 651 469 1200 398 317 8 816 767 1012 853 644 463 89 640 1154 770 319 181 441 465 114 688 889 1865 521 456 Core 464 | 3 . . . . . . . . . . . . . . . . . 70 . . . . 82 309 . . Treads 2131 | 51 314 . . 331 139 . . . . . 23 . . . 412 . 231 . . . . 630 . . . . Legs 4632 | . . . . . 1 8 . . . 400 621 463 89 640 537 10 88 111 441 465 114 58 586 . . . Wheels 5123 | . 337 469 1200 67 177 . 816 767 1012 278 . . . . . . . . . . . . . . . . Hover 1361 | . . . . . . . . . . 175 . . . . 205 760 . . . . . . 221 . . . Flight 2533 | . . . . . . . . . . . . . . . . . . . . . . . . 1556 521 456 Fastest Speed 22 | 50 105 120 105 120 90 45 120 150 145 60 65 65 98 98 76 118 118 118 118 118 118 118 50 29 22 26 Average Speed 117 | 153 138 120 119 153 137 45 133 150 172 126 104 91 98 112 135 139 118 536 118 118 118 118 133 35 26 26 Slowest Speed 1200 | 160 160 120 150 160 160 45 150 150 210 160 194 98 98 115 140 140 118 1200 118 118 118 118 260 117 29 26 Overloaded Moves 214 | . . . . . . 8 . . . 79 18 90 . . 19 . . . . . . . . . . . Propulsion Burnouts . | . . . . . . . . . . . . . . . . . . . . . . . . . . . Robots Hopped 3 | . . . . . . . . . . . . . . . . . . . . . . . . 3 . . Cave-ins Triggered . | . . . . . . . . . . . . . . . . . . . . . . . . . . . Exploration Rate (%) 59 | 4 97 96 93 93 71 9 58 94 99 22 78 98 68 77 28 84 78 78 37 12 75 18 50 52 26 19 Regions Visited 26 Branch Regions 15 Pre-discovered Areas 12 | . 2 1 1 1 1 . 1 . 3 . . . 1 1 . . . . . . . . . . . . Known Exits Taken 9 | . . . 1 . . . 1 . . 1 1 . . 1 1 . . . . . . 1 . 1 1 . Unknown Exits Taken 15 | 1 1 1 . 1 1 1 . 1 1 . . 1 1 . . 1 1 1 1 . . . 1 . . . Scrap Searched 9 | . . 1 . 1 . . . . . . 1 5 . 1 . . . . . . . . . . . . Spaces Dug 213 | . . 9 . . . . . 1 . 7 . 13 . 35 24 . . . 1 6 2 8 37 6 6 58 Terrain Destroyed 1219 | . 23 9 44 16 . . 38 96 6 139 23 37 . 80 148 8 2 8 22 37 2 132 260 6 6 77 Melee 25 | . . . . . . . . 1 . . . . . . 3 . . . . . . . . 6 6 9 Projectile 313 | . . . 1 . . . . 52 6 3 3 . . 2 61 8 2 8 22 22 2 69 52 . . . AOE 881 | . 23 9 43 16 . . 38 43 . 136 20 37 . 78 84 . . . . 15 . 63 208 . . 68 Terrain Rammed . | . . . . . . . . . . . . . . . . . . . . . . . . . . . Walls Destroyed . | . . . . . . . . . . . . . . . . . . . . . . . . . . . Machines Disabled . | . . . . . . . . . . . . . . . . . . . . . . . . . . . Actions | -11 -10 -10 -9 -9 -9 -8 -8 -8 -8 -6 -6 -6 -6 -5 -5 -5 -5 -5 -5 -4 -4 -4 -4 -3 -2 -1 --------- Run | Yrd Mat Min Mat Min Exi Min Mat Sto Rec Fac Low Low Dat Pro Fac Ext Cet Arc Hub Fac Was Fac Arm Res Res Acc Total 20282 | 73 794 505 1647 455 329 7 967 1056 1151 1109 762 669 91 673 1509 968 686 208 538 677 120 864 1124 2181 556 563 Wait 2340 | 9 50 16 207 24 . . 56 127 68 123 65 188 . 7 220 118 336 18 68 158 5 112 94 188 2 81 Move 16213 | 53 650 468 1199 397 316 7 815 766 1011 852 643 462 88 639 1153 769 318 180 440 465 113 687 888 1859 520 455 Hop 2 | . . . . . . . . . . . . . . . . . . . . . . . . 2 . . Pick Up 142 | . 14 1 26 2 4 . 18 3 7 10 4 4 . 3 8 3 4 . . 3 . 4 6 16 2 . Fast Attach 114 | 7 5 . 11 . . . . 9 2 7 1 4 1 . 2 2 3 1 4 3 . 6 4 38 4 . Attach 72 | . . . 12 1 . . 4 5 5 13 4 1 . 3 4 . . 1 . 1 . . 9 4 . 5 Detach 50 | . 1 . 2 . . . . 3 6 7 2 2 1 1 5 . 1 . 1 2 . . 6 8 . 2 Swap 91 | . 7 3 19 9 5 . 12 8 3 1 1 1 . 3 4 2 2 . 1 . . 1 3 2 4 . Drop 173 | . 6 1 26 1 4 . 17 9 18 9 5 5 1 1 11 7 8 1 . 5 . 2 5 24 6 1 Fire 911 | 4 61 16 145 21 . . 45 125 31 80 8 2 . 13 82 31 14 7 24 39 2 51 93 12 . 5 Melee 135 | . . . . . . . . 1 . 7 28 . . 3 20 . . . . 1 . 1 16 26 18 14 Ram 2 | . . . . . . . . . . . . . . . . . . . . . . . . 2 . . Kick . | . . . . . . . . . . . . . . . . . . . . . . . . . . . Crush . | . . . . . . . . . . . . . . . . . . . . . . . . . . . Escape Stasis 3 | . . . . . . . . . . . . . . . . 3 . . . . . . . . . . Rewire 33 | . . . . . . . . . . . . . . . . 33 . . . . . . . . . . Trap 1 | . . . . . . . . . . . 1 . . . . . . . . . . . . . . . Miscellaneous . | . . . . . . . . . . . . . . . . . . . . . . . . . . . Route ------- -11/Scrapyard -10/Materials (discovered 4 exits: *Mat x3 / [*Min]) -10/Mines (discovered 2 exits: *Mat x2) -9/Materials (discovered 4 exits: *Mat x3 / *Min) -9/Mines (discovered 3 exits: *Mat x2 / *Exi) -9/Exiles -8/Mines -8/Materials (discovered 2 exits: [*Fac] / *Sto) -8/Storage (discovered 2 exits: [*Fac] / *Rec) -8/Recycling -6/Factory (discovered 3 exits: *Fac / *Low x2) -6/Lower Caves -6/Lower Caves (discovered 2 exits: *Fac / *Dat) -6/Data Miner -5/Proximity Caves -5/Factory (discovered 6 exits: *Fac x2 / *Upp x2 / *Ext x2) -5/Extension (discovered 2 exits: *Fac / *Cet) -5/Cetus (discovered 2 exits: *Fac / [*Arc]) -5/Archives (discovered 3 exits: *Fac / *Hub x2) -5/Hub_04(d) -4/Factory (discovered 4 exits: *Res / Upp x2 / Arm) -4/Waste -4/Factory (discovered 4 exits: *Res / *Upp x2 / *Arm) -4/Armory -3/Research -2/Research (discovered 4 exits: *Acc x3 / [*Qua]) -1/Access To Epsilon Eridani History --------- Turn | Location | Event 12 | -11/Scrapyard | Discovered new exit (range 14) 114 | -11/Scrapyard | Entered Materials 300 | -10/Materials | Build established: Mutant 537 | -10/Materials | Discovered new exit (range 16) 615 | -10/Materials | Central database locked down 727 | -10/Materials | Discovered new exit (range 16) 925 | -10/Materials | Discovered new exit (range 5) 1155 | -10/Materials | Discovered new exit (range 13) 1281 | -10/Materials | Entered Mines 1341 | -10/Mines | Received a Mining Laser from a helpful Derelict 1439 | -10/Mines | Learned location of Storage (-8) 1496 | -10/Mines | Discovered new exit (range 8) 1649 | -10/Mines | Core integrity fell below 50% 1675 | -10/Mines | Found a damaged Exp. Sensor Array with a note attached 1677 | -10/Mines | Found Prototype Device 1795 | -10/Mines | Found a hidden stash of uninstalled traps 1892 | -10/Mines | Discovered new exit (range 7) 1912 | -10/Mines | Entered Materials 1912 | -9/Materials | Accompanied by 2 allies 1912 | -9/Materials | Evolved 2 slots: Propulsion x1, Utility x1 1917 | -9/Materials | Led the pair of lost Derelicts to an unsafe place 1976 | -9/Materials | Identified Exp. Sensor Array 2712 | -9/Materials | First assault squad dispatched 2739 | -9/Materials | Repaired Broken Exp. Sensor Array 2945 | -9/Materials | Identified exit to Mines 3101 | -9/Materials | Discovered new exit (range 5) 3116 | -9/Materials | Core integrity fell below 50% 3524 | -9/Materials | Discovered new exit (range 6) 3901 | -9/Materials | Discovered new exit (range 8) 4067 | -9/Materials | Entered Mines 4068 | -9/Mines | Assembled infested the area 4082 | -9/Mines | Met a Derelict bent on vengeance 4086 | -9/Mines | Core integrity fell below 20% 4179 | -9/Mines | Discovered new exit (range 15) 4522 | -9/Mines | Build established: Scavenger-Mutant 4562 | -9/Mines | Learned Materials terminal intel 4739 | -9/Mines | Discovered new exit (range 10) 4763 | -9/Mines | Deemed a non-threat by the Exiles lab entrance 4763 | -9/Mines | Discovered new exit (range 5) 4771 | -9/Mines | Entered Exiles 4822 | -9/Exiles | Met 8R-AWN 4848 | -9/Exiles | Met EX-HEX 4909 | -9/Exiles | Met EX-DEC 4930 | -9/Exiles | Met EX-BIN 4952 | -9/Exiles | Aligned with FarCom system 4954 | -9/Exiles | Given EX-Vault access code 4992 | -9/Exiles | Opened EX-Vault 5004 | -9/Exiles | Found Potential Leg 5006 | -9/Exiles | Found Potential Leg 5031 | -9/Exiles | Warned to stay clear of 0b10 Research branches 5070 | -9/Exiles | Learned location of Zion (-7) 5204 | -9/Exiles | Discovered new exit (range 14) 5220 | -9/Exiles | Left Exiles lab with Potential Leg 5220 | -9/Exiles | Entered Mines 5222 | -8/Mines | Discovered new exit (range 6) 5224 | -8/Mines | Entered Materials 5224 | -8/Materials | Evolved 2 slots: Utility x1, Weapon x1 5225 | -8/Materials | Loaded intel: 12 terminal locations 5384 | -8/Materials | Discovered new exit (range 6) 5499 | -8/Materials | Identified exit to Storage 5534 | -8/Materials | Build established: Tank 5764 | -8/Materials | Discovered new exit (range 10) 6550 | -8/Materials | Entered Storage 6559 | -8/Storage | Met a pair of Derelict thieves 6826 | -8/Storage | Used back door to open Recycling access 6826 | -8/Storage | Discovered new exit (range 5) 7691 | -8/Storage | Discovered new exit (range 7) 8150 | -8/Storage | First assault squad dispatched 8263 | -8/Storage | Entered Recycling 8286 | -8/Recycling | Build established: Skirmisher 8541 | -8/Recycling | Discovered new exit (range 16) 8742 | -8/Recycling | Build established: Tank 8818 | -8/Recycling | Scanned before Scraplab entrance 8839 | -8/Recycling | Entered Scraplab 8877 | -8/Recycling | Angered Scraplab inhabitants 8882 | -8/Recycling | Found Prototype Device 8908 | -8/Recycling | Identified Scrap Engine 9347 | -8/Recycling | Build established: Construct 10197 | -8/Recycling | Entered Factory 10197 | -6/Factory | Evolved 4 slots: Power x1, Propulsion x2, Utility x1 10219 | -6/Factory | Discovered new exit (range 15) 10242 | -6/Factory | Identified exit to Lower Caves 10242 | -6/Factory | Discovered new exit (range 11) 10376 | -6/Factory | Fabricated Flak Cannon (x2) 10547 | -6/Factory | Search patrols dispatched 10577 | -6/Factory | Fabricated Flexi-carbon Leg (x2) 11360 | -6/Factory | Cargo convoy interrupted 11384 | -6/Factory | Found Prototype Launcher 11384 | -6/Factory | Identified Adv. Micro-nuke Launcher 11411 | -6/Factory | Destroyed 7 combat bots 11414 | -6/Factory | Core integrity fell below 50% 11415 | -6/Factory | Lost 9 parts (1p3n1u4w) 11490 | -6/Factory | Found Adv. Micro-nuke Launcher 11508 | -6/Factory | Found PL-3XN's Ring of Power 11523 | -6/Factory | Found Adv. Micro-nuke Launcher 11607 | -6/Factory | Entered Lower Caves 11669 | -6/Lower Caves | Build established: Mutant 11914 | -6/Lower Caves | Identified exit to Lower Caves 11992 | -6/Lower Caves | Ambushed by research squad 12021 | -6/Lower Caves | Build established: Construct 12056 | -6/Lower Caves | Lost 3 parts (1p1u1w) 12141 | -6/Lower Caves | Attracted the attention of an 0b10 checkpoint 12327 | -6/Lower Caves | Build established: Mutant 12450 | -6/Lower Caves | Entered another Lower Caves area 12628 | -6/Lower Caves | Discovered new exit (range 42) 12848 | -6/Lower Caves | Encountered a Warlord checkpoint 12852 | -6/Lower Caves | Learned location of 1 exit from Proximity Caves 12976 | -6/Lower Caves | Spotted B-75 Beast 13002 | -6/Lower Caves | Discovered new exit (range 34) 13082 | -6/Lower Caves | Entered Data Miner 13083 | -6/Data Miner | Discovered new exit (range 6) 13102 | -6/Data Miner | Met Data Miner 13119 | -6/Data Miner | Learned location of Section 7 (-2) 13119 | -6/Data Miner | Acquired the access code to Warlord's prototype stash 13135 | -6/Data Miner | Received God Mode back door access code from Data Miner 13171 | -6/Data Miner | Entered Proximity Caves 13172 | -5/Proximity Caves | Identified exit to Factory 13355 | -5/Proximity Caves | Escorted by Enhanced Grunt 13440 | -5/Proximity Caves | Core integrity fell below 20% 13548 | -5/Proximity Caves | Build established: Construct 13757 | -5/Proximity Caves | Found Alien Artifact 13782 | -5/Proximity Caves | Learned Factory trap positions 13922 | -5/Proximity Caves | Learned location of Warlord (-4) 13934 | -5/Proximity Caves | Attracted the attention of an 0b10 checkpoint 13945 | -5/Proximity Caves | Entered Factory 13945 | -5/Factory | Evolved 2 slots: Propulsion x1, Utility x1 13946 | -5/Factory | Loaded intel: 102 trap records 14080 | -5/Factory | Discovered new exit (range 13) 14193 | -5/Factory | Discovered new exit (range 8) 14252 | -5/Factory | Identified exit to Upper Caves 14252 | -5/Factory | Identified exit to Extension 15449 | -5/Factory | Spotted B-75 Beast 15969 | -5/Factory | Entered Extension 16007 | -5/Extension | Rescued a captive Derelict 16140 | -5/Extension | Rescued a captive Derelict 16150 | -5/Extension | Rescued a captive Derelict 16310 | -5/Extension | Rescued a captive Derelict 16330 | -5/Extension | Rescued a captive Derelict 16331 | -5/Extension | Rescued a captive Derelict 16739 | -5/Extension | Spotted B-75 Beast 16751 | -5/Extension | Spotted B-75 Beast 16755 | -5/Extension | Allies destroyed B-75 Beast 16774 | -5/Extension | Destroyed B-75 Beast 16819 | -5/Extension | Lost 8 allies 16847 | -5/Extension | Rescued A7 16900 | -5/Extension | Rescued a captive Derelict 16929 | -5/Extension | Rescued a captive Derelict 16948 | -5/Extension | Rescued a captive Derelict 16949 | -5/Extension | Rescued a captive Derelict 16986 | -5/Extension | Rescued a captive Derelict 16987 | -5/Extension | Rescued a captive Derelict 17134 | -5/Extension | Rescued a captive Derelict 17162 | -5/Extension | Discovered new exit (range 10) 17163 | -5/Extension | Discovered new exit (range 6) 17274 | -5/Extension | Entered Cetus 17274 | -5/Cetus | Accompanied by 10 allies (A7) 17279 | -5/Cetus | Acquired a Cetus Manufacturing Module code from A7 17290 | -5/Cetus | Spotted Cetus Guard 17290 | -5/Cetus | Spotted Cetus Guard 17291 | -5/Cetus | Spotted Cetus Guard 17292 | -5/Cetus | Spotted Cetus Guard 17297 | -5/Cetus | Allies destroyed Cetus Guard 17320 | -5/Cetus | Destroyed Cetus Guard 17325 | -5/Cetus | Allies destroyed Cetus Guard 17325 | -5/Cetus | Allies destroyed Cetus Guard 17381 | -5/Cetus | Lost 4 allies 17447 | -5/Cetus | Started Cetus Manufacturing Module 17472 | -5/Cetus | Manufactured an Enhanced Grunt 17474 | -5/Cetus | Escorted A7 to Cetus Mainframe 17497 | -5/Cetus | Manufactured an Enhanced Grunt 17522 | -5/Cetus | Manufactured an Enhanced Grunt 17547 | -5/Cetus | Manufactured an Enhanced Grunt 17572 | -5/Cetus | Manufactured an Enhanced Grunt 17604 | -5/Cetus | Discovered new exit (range 15) 17635 | -5/Cetus | Spotted Cetus Guard 17635 | -5/Cetus | Spotted Cetus Guard 17636 | -5/Cetus | Spotted Cetus Guard 17637 | -5/Cetus | Spotted Cetus Guard 17644 | -5/Cetus | Destroyed Cetus Guard 17646 | -5/Cetus | Allies destroyed Cetus Guard 17648 | -5/Cetus | Destroyed Cetus Guard 17649 | -5/Cetus | Allies destroyed Cetus Guard 17655 | -5/Cetus | Discovered new exit (range 15) 17661 | -5/Cetus | Met Revision 17 17672 | -5/Cetus | Extracted ID and sensor layout for unrecognized location from A7's data core 17858 | -5/Cetus | Build established: Commander-Construct 18024 | -5/Cetus | Security sweep announced 18029 | -5/Cetus | Entered Archives 18029 | -5/Archives | Accompanied by 9 allies 18051 | -5/Archives | Identified Dimensional Node Initializer 18051 | -5/Archives | Initialized slip node 18078 | -5/Archives | Discovered new exit (range 16) 18084 | -5/Archives | Lost 6 allies 18093 | -5/Archives | Discovered new exit (range 16) 18132 | -5/Archives | Discovered new exit (range 15) 18361 | -5/Archives | Build established: Construct 19034 | -5/Archives | Entered Hub_04(d) 19034 | -5/Hub_04(d) | Accompanied by 3 allies 19034 | -5/Hub_04(d) | Discovered new exit (range 13) 19391 | -5/Hub_04(d) | Found Prototype Device 19391 | -5/Hub_04(d) | Identified Exp. Thermal Shield 19534 | -5/Hub_04(d) | Network Hub disabled 19678 | -5/Hub_04(d) | Entered Factory 19678 | -4/Factory | Evolved 2 slots: Power x1, Weapon x1 19745 | -4/Factory | Identified exit to Upper Caves 19745 | -4/Factory | Identified exit to Armory 20177 | -4/Factory | Discovered new exit (range 15) 20453 | -4/Factory | First assault squad dispatched 20475 | -4/Factory | Manually triggered Chute Trap 20475 | -4/Factory | Sucked down chute 20475 | -4/Factory | Entered Waste 20476 | -4/Waste | Met a frightened Derelict 20490 | -4/Waste | EMP discharged 20520 | -4/Waste | Spotted C-40 Crusher 20521 | -4/Waste | Spotted C-40 Crusher 20524 | -4/Waste | Spotted C-40 Crusher 20561 | -4/Waste | Spotted C-40 Crusher 20562 | -4/Waste | Spotted C-40 Crusher 20570 | -4/Waste | Spotted C-40 Crusher 20572 | -4/Waste | Crushed by Compactor (0 parts destroyed, 1 dropped) 20572 | -4/Waste | Crushed by Compactor (1 part destroyed) 20590 | -4/Waste | EMP discharged 20590 | -4/Waste | System corruption reached 10% 20598 | -4/Waste | Discovered new exit (range 15) 20618 | -4/Waste | Entered Factory 20898 | -4/Factory | Found Imp. Powered Armor 21232 | -4/Factory | Incoming investigation squad redirected 21316 | -4/Factory | Discovered new exit (range 9) 21618 | -4/Factory | First assault squad dispatched 21659 | -4/Factory | Entered Armory 22183 | -4/Armory | Fabricated Flak Cannon (x2) 22205 | -4/Armory | First assault squad dispatched 22422 | -4/Armory | Lost 3 allies 22840 | -4/Armory | Energy Cycler disabled 22969 | -4/Armory | Destroyed 7 combat bots 23127 | -4/Armory | Released all parts (7) 23130 | -4/Armory | Destroyed 9 combat bots 23134 | -4/Armory | Core integrity fell below 50% 23167 | -4/Armory | Discovered new exit (range 3) 23168 | -4/Armory | Entered Research 23168 | -3/Research | Evolved 2 slots: Utility x2 23368 | -3/Research | Revision forces began assault on 0b10 23403 | -3/Research | Build established: Mutant 23412 | -3/Research | Met up with Revision 17++ 23502 | -3/Research | Spotted B-86 Titan 23821 | -3/Research | Spotted B-86 Titan 23849 | -3/Research | Found Prototype Launcher 23849 | -3/Research | Identified Hellfire Missile Launcher 23868 | -3/Research | Research terminal network offline 23934 | -3/Research | Found Prototype Device 23934 | -3/Research | Identified Exp. ECM Suite 24115 | -3/Research | Discovered new exit (range 4) 24183 | -3/Research | Identified exit to Research 24209 | -3/Research | Entered another Research area 24209 | -2/Research | Evolved 2 slots: Propulsion x2 24232 | -2/Research | Identified exit to Access 24353 | -2/Research | Discovered new exit (range 23) 24412 | -2/Research | Entered Access 24412 | -1/Access | Evolved 2 slots: Utility x2 24506 | -1/Access | Identified exit to Surface 24662 | -1/Access | First assault squad dispatched 24665 | *** | Escaped! Last Messages --------------- 24614_ U-05 Engineer lays Concrete. 24617_ K-01 Serf collects debris. 24618_ Slug penetrates Spectral Interrupter. 24618_ Penetrated by Slug. 24618_ K-01 Serf collects debris. 24619_ Penetrated by Slug. 24623_ >> Machine Analyzer network decryption results: 24623_ Terminal x2 24640_ >> Machine Analyzer network decryption results: 24640_ Recycling Unit x1 24649_ Wave Collapse Detector explodes. 24653_ The unstable cave ceiling collapses. 24662_ ALERT: Significant disruption in Zone 7V, assault force dispatched. 24663_ Connecting with Terminal... >>Open(Door) Sealed Barrier opened. 24664_ The Access Shell folds into the floor. Map ----- +----------------------------------------------------+ | ####?####???#?#??#????#??????????#????????? | | ###########???????#????????????? ????????? | | # ##?#?????????????? ????????????? | | ## ????????#????????? ? ???????? | | ##? ????????????????? ?????????? | | # %#? ?? ? ???????????#??????????? | | ""Y"" #? ?? ???????????????????????? | | """"" ##??? ? ????#????????? ????????? | | #?#??????#???#?????????????????? | | ## # ##??#?????????#?????????? ?????? | | ##### #########+#####################??????+#?#??? | | ##? ?# k w ?? ???? ????? | | ### ?# kR ????????????? | | ### # ####### ""#?????????????????? | | ### " # ??##?## ""#?????????????????? | | #?# """ # ?????## ""#??? ??? ??? ?????? | | ### """ + ??##?## T#???????????? ?##?# | | #?# " # #?#??## ""#????C???????????#? | | ##? + ???#?## ""#???????""""" ????? | | ???? ? ???????#???## ""##?""?? """""?????? | | ?#??#??#####???????# #?""???"""""?????? | | ###?##?????#? #?#?### ##?G??? """"" ????? | | ?#?#####?###? ##????# ###""???"""""?????? | | ?##?###?#?## #?????# #??""???"""""?????? | | ?##??#?#?#??? #?????# #?? ?????? ??? ???? | | ??#???#??##?? ??????# @" #???????? ???????? | | ?#?##?#??### ?#????# "" #?????????????????? | | ##?#####?##?? ??????# #???????????????#?? | | ??#???#???#? ???#???# #????????? ???????? | | #??#????????Y ??????# #?#???#??#?##?????? | | ????????###?????????#""""""""""#?????????????????? | | ???###??#??? #????????"?""????????????#?????????? | | ? ? ?? ? ???????????????????????????? ???????????? | | ????? ????????????#???????????#??#? ????????????? | | """""?????? ????????????????????#??? ????#??????? | | """""""" ??????????? BB????BB???????????????????? | | """""""" ??????#????#?BB ? ?BB??????????????? ???? | | ?"""""????????????#??????????????????????????????? | | ????????????????????#???????????##???????????????? | | ? ?????????? ??????????? ??? ????????????????????? | | ?????? ???????#?????????????????????#???????????? | | ?????????????????????????????????????????????????? | | ??????????????????????????????#???????#??????????? | | ????? ???????????????????????????????????????????? | | ??????????????????""????????????#??#?????????????? | | ? ? ??????????????"""????????????????????????????? | | ? ?????????????????T"????????????????????????????? | | ??????????????????"""????? ??????????????????????? | | ??????????????????""?????????????????????????????? | | ?????????????????????????????????????????????????? | +----------------------------------------------------+ Best States ------------- Heat Dissipation 81 Coolant Potential 50 Energy Generation 69 Energy Capacity 882 Matter Stores 300 Matter Capacity 300 Sight Range 23 Robot Scan Range 20 Terrain Scan Range 24 Terrain Scan Density 210 Additional Mass Support 20 Armor Coverage 375 Resistance: TH 30 Utility Shielding 66 Evasion (%) 76 Melee Accuracy 5 Recoil Reduction 4 Offensive Hacking 36 Defensive Hacking 12 Authchip Count 1 Item Schematics ----------------- Flak Cannon | -8/Recycling | Hacked Combat Drone Bay | -6/Data Miner | Free Lgt. Regenerative Plating | -6/Data Miner | Free Cld. Gravmag System | -6/Data Miner | Free Imp. Energy Well | -6/Data Miner | Free Tesla Bomb Launcher | -6/Data Miner | Free Imp. Linear Gravjet | -6/Data Miner | Free Graphene Brace | -6/Data Miner | Free Hvy. Disruptor Cannon | -6/Data Miner | Free Hyp. Coil Gun | -6/Data Miner | Free HERF Cannon | -6/Data Miner | Free Lrn. Sensor Array | -6/Data Miner | Free Adv. Force Field | -6/Data Miner | Free Quantum Rifle | -6/Data Miner | Free Rnf. Quantum Reactor | -4/Armory | Hacked Robot Schematics ------------------ B-48 Gladiator | -6/Data Miner | Free G-50 Soldier | -6/Data Miner | Free L-41 Fighter | -6/Data Miner | Free O-32 Director | -6/Data Miner | Free Fabricated ------------ Flak Cannon | x2 | -6/Factory | Authchip Flexi-carbon Leg | x2 | -6/Factory | Preloaded Flak Cannon | x2 | -4/Armory | Authchip Alien Tech Used ----------------- Dimensional Node Initializer Achievements -------------- None Challenges ------------ None Game ------ Seed InertialTargetingCyclogen Manual? 0 Play Time 04:14:29 Cumulative 346.7 hours Start 2025.03.08 @ 14:03:42 End 2025.03.08 @ 18:32:18 Sessions 1 Manual Loads 0 Difficulty Rogue Special Mode None Game No. 79 Rogue 79 Adventurer 0 Explorer 0 Win Type 0 Total 22 Types 13/1/5/1/0/0/0/1/1 Lore% 79 Gallery% 83 Achievement% 77 Wizard Run 0 Options --------- Layout 1 ASCII 0 Keyboard 0 Movement Mouse Keybinds 0 Fullscreen 1 Font 24/Smallcaps Map View 50x35 Zoom Use 0% Tactical HUD 1 Map Filters NONE Filters NONE Steam 1 RUN: 7d28a787-ed63-4018-b45f-6493eddbcb36